bitfinex/quotes_BTCUSD_20251010
["timestamp","ask_amount","ask_price","bid_price","bid_amount"]
[1760130798130,0.17257208,111700.0,111620.0,0.1626077]
[1760130798131,0.85561191,111630.0,111620.0,0.1626077]
[1760130798421,0.3,111610.0,111570.0,7.918e-05]
[1760130798656,3.39924686,111590.0,111520.0,0.1019261]
[1760130798885,3.39924686,111590.0,111450.0,0.13661921]
[1760130798886,0.32653652,111560.0,111450.0,0.13661921]
[1760130799128,0.04522,111460.0,111370.0,0.02052705]
[1760130799332,2.57261,111410.0,111340.0,0.0289816]
[1760130799580,2.57261,111410.0,111310.0,0.68419453]
[1760130799581,2.57261,111390.0,111300.0,0.0008483]
[1760130799797,0.04522,111400.0,111190.0,0.05907408]
[1760130799798,0.32499999,111250.0,111190.0,0.05907408]
[1760130800013,0.02499999,111300.0,111210.0,0.00276]
[1760130800254,0.00470558,111530.0,111400.0,0.02499999]
[1760130800504,0.3,111220.0,111200.0,0.04454638]
[1760130800732,0.62499999,111190.0,111180.0,0.20168409]
[1760130800973,0.09999999,111380.0,111110.0,0.007204]
[1760130800974,0.1795777,111380.0,111110.0,0.007204]
[1760130801172,2.57261,111340.0,111140.0,0.05805831]
[1760130801385,0.28649447,111280.0,111130.0,0.04453112]
[1760130801631,0.00049135,111280.0,111130.0,0.0448044]
[1760130801880,0.00049135,111280.0,111130.0,0.04410228]
[1760130802125,0.28649447,111320.0,111280.0,0.17972681]
[1760130802345,0.15114629,111290.0,111270.0,0.26711787]
[1760130802568,0.00676908,111230.0,111160.0,0.27500741]
[1760130802796,0.00610565,111230.0,111110.0,0.39020283]
[1760130803027,0.09092904,111320.0,111230.0,0.01552113]
[1760130803238,0.28649447,111240.0,111110.0,0.35307255]
[1760130803479,0.28649447,111200.0,111140.0,0.00479366]
[1760130803704,0.01560262,111280.0,111120.0,7.99166864]
[1760130803935,0.00790823,111230.0,111140.0,0.3]
[1760130804166,0.49497702,111270.0,111140.0,0.00899766]
[1760130804402,0.02157274,111220.0,111130.0,0.13746999]
[1760130804697,0.02499999,111230.0,111050.0,0.00900495]
[1760130804698,0.19999998,111190.0,111050.0,0.00900495]
[1760130804881,0.19999998,111100.0,111090.0,0.3]
[1760130805094,0.19999998,111060.0,111040.0,0.78353809]
[1760130805315,0.18012519,111040.0,110860.0,0.05760523]
[1760130805519,0.18012519,111040.0,110780.0,0.15368128]
[1760130805520,0.95561191,111040.0,110780.0,0.15368128]
[1760130805729,2.21995894,110890.0,110860.0,0.02499999]
[1760130805945,0.18044376,110850.0,110780.0,0.1079504]
[1760130806210,2.210941,110770.0,110740.0,0.09046112]
[1760130806416,0.18066847,110700.0,110690.0,0.00217884]
[1760130806648,0.18066847,110700.0,110640.0,0.02499999]
[1760130806649,1.600941,110700.0,110640.0,0.02499999]
[1760130806853,1.78175647,110610.0,110600.0,0.80349125]
[1760130807068,1.600941,110580.0,110560.0,0.54554768]
[1760130807323,0.18987341,110600.0,110560.0,0.11164806]
[1760130807324,1.600941,110570.0,110560.0,0.11164806]
[1760130807545,0.89775174,110430.0,110410.0,0.52436625]
[1760130807742,0.04575751,110610.0,110330.0,0.40190081]
[1760130807743,0.02499999,110540.0,110420.0,0.01381925]
[1760130807961,0.02745178,110510.0,110450.0,0.4]
[1760130808187,0.02745178,110510.0,110350.0,0.02722507]
[1760130808188,0.02499999,110470.0,110350.0,0.02722507]
[1760130808410,0.28813254,110500.0,110330.0,0.15179467]
[1760130808411,0.006884,110350.0,110330.0,0.15179467]
[1760130808620,0.006884,110350.0,110330.0,0.13279434]
[1760130808839,0.13293386,110450.0,110330.0,0.11698276]
[1760130809059,0.00865384,110390.0,110330.0,0.10844116]
[1760130809272,5.07673654,110380.0,110320.0,0.001046]
[1760130809511,5.07673654,110380.0,110310.0,0.29604012]
[1760130809512,0.02499999,110360.0,110330.0,0.35990789]
[1760130809726,0.02499999,110360.0,110310.0,0.20140628]
[1760130809727,0.09035313,110360.0,110310.0,0.20140628]
[1760130809976,0.00048519,110380.0,110310.0,0.14797396]
[1760130810203,4.788604,110370.0,110220.0,0.04515362]
[1760130810417,0.19999998,110280.0,110180.0,0.28776]
[1760130810636,0.19888,110370.0,110120.0,0.33289921]
[1760130810637,0.28813254,110360.0,110120.0,0.33289921]
[1760130810861,0.19999998,110380.0,110150.0,0.09999999]
[1760130810862,0.28813254,110380.0,110150.0,0.09999999]
[1760130811067,0.28813254,110380.0,110200.0,0.01076399]
[1760130811068,0.28813254,110330.0,110200.0,0.01076399]
[1760130811288,0.847196,110230.0,110160.0,0.07671229]
[1760130811513,0.3,110180.0,110150.0,0.05085634]
[1760130811737,0.27649887,110340.0,110240.0,0.02907043]
[1760130811946,0.33382346,110410.0,110170.0,0.59831298]
[1760130811947,0.0022029,110430.0,110340.0,0.02279709]
[1760130812168,0.61079999,110430.0,110210.0,0.02082226]
[1760130812395,0.577296,110250.0,110130.0,0.02499999]
[1760130812601,0.06305459,110320.0,110310.0,0.28813254]
[1760130812818,0.06305459,110320.0,110170.0,0.02724152]
[1760130812819,0.277296,110280.0,110060.0,0.14754763]
[1760130813040,0.18805457,110320.0,110130.0,0.07285089]
[1760130813310,0.1,110280.0,110070.0,0.28813254]
[1760130813531,0.3,110170.0,110160.0,0.28813254]
[1760130813749,0.31313253,110250.0,110070.0,0.28813254]
[1760130814016,0.02499999,110120.0,110060.0,0.10029977]
[1760130814261,0.04296018,110320.0,110180.0,0.03350746]
[1760130814479,0.00015195,110320.0,110250.0,0.00907029]
[1760130814684,0.0295052,110340.0,110260.0,0.2886]
[1760130814924,0.02733867,110360.0,110260.0,0.00015195]
[1760130815122,0.31030036,110370.0,110140.0,0.04503092]
[1760130815123,0.28283509,110270.0,110240.0,0.00907111]
[1760130815347,0.18076005,110370.0,110240.0,0.00907111]
[1760130815348,5.115716,110320.0,110240.0,0.00014527]
[1760130815563,5.115716,110320.0,110140.0,0.02499999]
[1760130815564,0.09999999,110370.0,110280.0,0.00906782]
[1760130815766,5.115716,110470.0,110270.0,0.14936]
[1760130815992,0.01849382,110360.0,110200.0,0.38248958]
[1760130816194,0.00635041,110450.0,110250.0,0.51706668]
[1760130816417,0.1141638,110440.0,110240.0,0.0019]
[1760130816617,4.12009252,110510.0,110500.0,0.02499999]
[1760130816842,6e-05,110520.0,110440.0,0.02628]
[1760130817155,0.001,110680.0,110490.0,0.27540923]
[1760130817357,0.001,110680.0,110510.0,0.0272]
[1760130817358,0.0005088,110680.0,110510.0,0.0272]
[1760130817575,0.00748095,110830.0,110790.0,0.02499999]
[1760130817802,0.00748095,110830.0,110720.0,0.02447634]
[1760130817803,0.01441939,110820.0,110720.0,0.02447634]
[1760130818036,2.314959,110840.0,110780.0,0.02447634]
[1760130818253,2.314959,110840.0,110570.0,0.09999999]
[1760130818254,0.28813254,110720.0,110570.0,0.09999999]
[1760130818489,0.001,110810.0,110730.0,0.022147]
[1760130818696,0.05467602,110890.0,110690.0,0.022147]
[1760130818919,2.052812,110870.0,110860.0,0.02499999]
[1760130819144,2.007498,110870.0,110860.0,0.02499999]
[1760130819389,2.007498,110960.0,110840.0,0.02499999]
[1760130819600,0.55572,110980.0,110790.0,0.05598]
[1760130819601,0.00015283,110870.0,110860.0,0.02499999]
[1760130819820,0.01527239,110970.0,110960.0,0.02499999]
[1760130820071,1.948724,110960.0,110850.0,0.32707247]
[1760130820288,1.948724,110960.0,110840.0,0.05598]
[1760130820509,0.02472789,110950.0,110860.0,0.05598]
[1760130820767,0.01577857,110970.0,110870.0,0.28840464]
[1760130821011,8e-05,110920.0,110870.0,0.28663254]
[1760130821231,8e-05,110920.0,110860.0,0.02472789]
[1760130821445,0.01527239,110970.0,110900.0,0.19908998]
[1760130821700,0.01527239,110970.0,110900.0,0.19758998]
[1760130821904,0.62536773,111030.0,110950.0,0.1897623]
[1760130822124,0.0015,111060.0,111010.0,0.18409746]
[1760130822356,0.65866746,111120.0,111030.0,0.18409746]
[1760130822570,0.65866746,111120.0,111020.0,0.06591]
[1760130822571,0.0001516,111120.0,111080.0,0.00457743]
[1760130822782,8e-05,111230.0,111040.0,0.03897]
[1760130822783,0.001,111210.0,111130.0,0.19999998]
[1760130823003,0.00150568,111210.0,111150.0,0.17700052]
[1760130823216,0.001,111290.0,111240.0,0.17700052]
[1760130823429,0.02703792,111480.0,111340.0,0.17700052]
[1760130823650,0.00050725,111480.0,111420.0,0.17155752]
[1760130823874,0.00050725,111480.0,111420.0,0.16073145]
[1760130824097,0.00050725,111480.0,111410.0,0.03995]
[1760130824315,0.41120386,111440.0,111370.0,0.15801097]
[1760130824528,0.36626983,111440.0,111400.0,0.15801097]
[1760130824765,0.001,111510.0,111410.0,0.03995]
[1760130824988,1.948724,111570.0,111440.0,0.16018558]
[1760130825307,0.0153082,111600.0,111470.0,0.16018558]
[1760130825512,0.01581608,111600.0,111480.0,0.25467558]
[1760130825727,0.01581608,111600.0,111560.0,0.14807635]
[1760130825949,0.01618475,111710.0,111570.0,0.09449]
[1760130826183,0.01618475,111710.0,111620.0,0.12760487]
[1760130826184,0.0153373,111710.0,111620.0,0.12760487]
[1760130826412,0.67400476,111710.0,111650.0,0.04961504]
[1760130826644,0.0153373,111710.0,111650.0,0.03819478]
[1760130826850,0.001,111760.0,111650.0,0.3]
[1760130827081,0.0150613,111810.0,111650.0,0.32499999]
[1760130827305,0.00165129,111790.0,111750.0,0.4]
[1760130827525,8e-05,111830.0,111730.0,0.01756]
[1760130827784,0.41207034,111810.0,111730.0,0.01756]
[1760130827977,0.64311308,111820.0,111800.0,0.4]
[1760130828188,0.64311308,111820.0,111710.0,0.00457743]
[1760130828189,0.49334426,111860.0,111110.0,6.16062039]
[1760130828441,0.49334426,111860.0,111680.0,0.02450563]
[1760130828442,0.1985341,111750.0,111680.0,0.02450563]
[1760130828625,0.1985341,111750.0,111650.0,0.0269031]
[1760130828626,0.1985341,111730.0,111650.0,0.0269031]
[1760130828837,0.1023027,111810.0,111720.0,0.2865073]
[1760130828838,0.00915736,111750.0,111720.0,0.2865073]
[1760130829110,0.18769146,111710.0,111650.0,0.02549774]
[1760130829308,0.18769146,111620.0,111590.0,0.02691598]
[1760130829518,0.09097,111700.0,111470.0,0.09252]
[1760130829519,0.18769146,111600.0,111470.0,0.09252]
[1760130829734,0.18759591,111640.0,111590.0,0.40050464]
[1760130829953,0.1150613,111810.0,111680.0,0.2865073]
[1760130829954,0.02499999,111790.0,111680.0,0.2865073]
[1760130830176,2.288724,111740.0,111650.0,0.2865073]
[1760130830398,0.02499999,111690.0,111680.0,0.497555]
[1760130830608,0.02499999,111680.0,111670.0,0.2865073]
[1760130830825,0.02356436,111730.0,111670.0,0.2865073]
[1760130831033,0.09999999,111770.0,111710.0,0.2865073]
[1760130831261,1.14935308,111790.0,111710.0,0.2865073]
[1760130831262,0.09999999,111790.0,111710.0,0.2865073]
[1760130831483,0.65817438,111810.0,111710.0,0.24568028]
[1760130831693,0.65817438,111810.0,111690.0,0.2865073]
[1760130831694,0.64311308,111750.0,111570.0,0.53123999]
[1760130831916,0.64311308,111760.0,111600.0,0.3]
[1760130832143,0.09097,111830.0,111600.0,0.02499999]
[1760130832402,0.09097,111800.0,111570.0,0.55083635]
[1760130832639,0.00050383,111800.0,111630.0,0.3]
[1760130832918,0.00050383,111800.0,111690.0,0.3]
[1760130833128,0.00050383,111800.0,111660.0,0.02499999]
[1760130833129,0.00050383,111800.0,111710.0,0.02499999]
[1760130833356,0.00050383,111800.0,111700.0,0.00486837]
[1760130833580,0.03578448,111790.0,111660.0,0.3]
[1760130833796,0.09097,111860.0,111700.0,0.26080253]
[1760130833797,0.23689085,111840.0,111700.0,0.26080253]
[1760130834007,0.2865073,111890.0,111720.0,0.2865073]
[1760130834218,0.2865073,111890.0,111740.0,0.3]
[1760130834437,50.0,111970.0,111820.0,0.02499999]
[1760130834663,50.0,111970.0,111790.0,0.00045774]
[1760130834877,0.10406575,111920.0,111820.0,0.3]
[1760130835114,0.10331992,111920.0,111780.0,0.3]
[1760130835314,0.10331992,111920.0,111750.0,0.0809517]
[1760130835315,0.09097,111910.0,111750.0,0.0809517]
[1760130835533,0.00050446,111920.0,111790.0,0.04611772]
[1760130835752,0.00050446,111920.0,111810.0,0.02499999]
[1760130835976,0.00050446,111920.0,111810.0,0.27776751]
[1760130836203,0.00050446,111920.0,111780.0,0.2865073]
[1760130836437,0.00050446,111920.0,111690.0,0.25349857]
[1760130836438,0.02499999,111880.0,111690.0,0.25349857]
[1760130836737,0.02499999,111800.0,111600.0,0.74271789]
[1760130836943,0.00788,111800.0,111740.0,0.2865073]
[1760130837166,0.00788,111800.0,111720.0,0.2865073]
[1760130837167,0.00288,111800.0,111720.0,0.2865073]
[1760130837387,0.09776384,111770.0,111750.0,0.28640506]
[1760130837598,0.09776384,111770.0,111750.0,0.28220435]
[1760130837819,1.948724,111880.0,111720.0,0.01984858]
[1760130838026,8e-05,111980.0,111820.0,0.03492441]
[1760130838221,8e-05,111980.0,111760.0,0.4]
[1760130838222,50.00015138,111970.0,111950.0,0.07050141]
[1760130838437,50.00015138,111970.0,111920.0,0.00466951]
[1760130838438,36.07968082,111970.0,111920.0,0.00466951]
[1760130838657,36.07968082,111970.0,111960.0,0.04211728]
[1760130838917,36.07987534,111970.0,111920.0,0.00466951]
[1760130839352,36.07987534,111970.0,111920.0,0.01919781]
[1760130839587,36.07987534,111970.0,111920.0,0.497101]
[1760130839588,35.67987534,111970.0,111920.0,0.497101]
[1760130839808,35.67987534,111970.0,111920.0,0.44959794]
[1760130840060,18.29838272,111970.0,111960.0,0.3]
[1760130840279,18.29838272,111970.0,111960.0,0.287]
[1760130840280,13.60396599,111970.0,111960.0,0.287]
[1760130840561,13.38899786,111970.0,111960.0,0.0403882]
[1760130840770,13.33030414,111970.0,111960.0,0.01703895]
[1760130841010,13.33030414,111970.0,111900.0,0.00457743]
[1760130841231,13.33030414,111970.0,111960.0,0.31155647]
[1760130841471,13.17865157,111970.0,111960.0,8.35016166]
[1760130841693,2.60011742,111970.0,111960.0,0.01633765]
[1760130841922,2.3741922,111970.0,111960.0,9.14811589]
[1760130842173,0.2865073,112040.0,111960.0,9.14811589]
[1760130842174,0.2865073,112160.0,112060.0,0.3]
[1760130842391,0.01053607,112120.0,112050.0,0.12904]
[1760130842592,0.01053607,112120.0,112070.0,0.03811781]
[1760130842803,0.03956748,112220.0,112130.0,0.3]
[1760130842804,0.01456749,112220.0,112130.0,0.3]
[1760130843024,0.2865073,112110.0,112100.0,0.3]
[1760130843266,0.03,112140.0,112080.0,1.97986686]
[1760130843511,0.03,112140.0,112110.0,0.04186276]
[1760130843712,0.07136167,112170.0,112140.0,0.02003212]
[1760130843941,0.07136167,112170.0,112140.0,0.33]
[1760130844144,0.07136167,112200.0,112140.0,0.01760754]
[1760130844403,0.0001514,112170.0,112160.0,0.6071252]
[1760130844603,0.07136167,112200.0,112090.0,1.39874606]
[1760130844604,0.01087293,112200.0,112140.0,0.0001514]
[1760130844814,0.22719688,112220.0,112150.0,8.02461595]
[1760130845039,0.15583521,112220.0,112160.0,8.0]
[1760130845257,0.35180364,112210.0,112190.0,0.3]
[1760130845477,0.35180364,112210.0,112200.0,0.67895979]
[1760130845691,0.41764412,112250.0,112240.0,0.17818959]
[1760130845943,0.00698757,112320.0,112260.0,0.17814821]
[1760130846156,0.06671142,112290.0,112280.0,0.17812611]
[1760130846359,0.07136167,112280.0,112270.0,0.52658166]
[1760130846579,0.07136167,112280.0,112270.0,0.50070668]
[1760130846802,0.00050396,112290.0,112280.0,0.17812611]
[1760130847038,1e-08,112340.0,112320.0,1.00141336]
[1760130847295,0.07136167,112310.0,112290.0,0.02697703]
[1760130847499,0.18701576,112290.0,112170.0,0.02423383]
[1760130847714,0.04429336,112270.0,112130.0,0.07136167]
[1760130847948,0.22240007,112210.0,112190.0,0.01056471]
[1760130848143,0.22240007,112210.0,112170.0,0.07136167]
[1760130848349,0.21740007,112210.0,112140.0,0.02546699]
[1760130848579,0.50070668,112150.0,112140.0,0.02546699]
[1760130848774,0.00891345,112190.0,112110.0,0.000119]
[1760130849004,0.21740007,112210.0,112170.0,0.00891503]
[1760130849217,0.21740007,112210.0,112150.0,0.00891662]
[1760130849432,0.21740007,112210.0,112200.0,0.17825311]
[1760130849646,0.21740007,112210.0,112130.0,0.18723438]
[1760130849856,0.278151,112210.0,112140.0,0.00891742]
[1760130850075,0.278151,112210.0,112170.0,0.09084505]
[1760130850293,0.28098112,112200.0,112080.0,0.00992219]
[1760130850509,0.68150333,112140.0,112010.0,0.001]
[1760130850720,0.50070668,112060.0,111980.0,0.00893016]
[1760130850940,1.00141336,112000.0,111930.0,0.001]
[1760130851158,0.50070668,112000.0,111920.0,0.001]
[1760130851391,0.28596,112010.0,111920.0,0.001]
[1760130851392,0.50070668,111970.0,111920.0,0.001]
[1760130851618,0.37977,112010.0,111920.0,0.001]
[1760130851619,0.50268,111960.0,111920.0,0.001]
[1760130851924,0.50070668,111920.0,111830.0,0.28559954]
[1760130852148,0.50070668,111920.0,111830.0,0.00050468]
[1760130852149,0.09381,111910.0,111830.0,0.00050468]
[1760130852391,0.09381,111910.0,111830.0,0.00944682]
[1760130852607,0.09381,111910.0,111830.0,0.00050468]
[1760130852848,0.09381,111910.0,111800.0,0.00894454]
[1760130852849,0.17874801,111890.0,111780.0,0.28559954]
[1760130853074,0.09999999,111860.0,111820.0,0.28559954]
[1760130853297,0.09999999,111900.0,111800.0,0.29454408]
[1760130853513,0.54029797,111840.0,111780.0,0.00894614]
[1760130853735,0.74820797,111830.0,111750.0,0.28559954]
[1760130853950,0.04751,111890.0,111790.0,0.28559954]
[1760130853951,0.59474,111820.0,111790.0,0.28559954]
[1760130854162,0.09999999,111800.0,111720.0,0.28559954]
[1760130854375,0.28608,111790.0,111740.0,0.18792025]
[1760130854590,0.28608,111790.0,111770.0,0.17892914]
[1760130854806,0.28608,111790.0,111740.0,0.18792351]
[1760130855023,0.28559954,111770.0,111710.0,0.00895175]
[1760130855244,0.09144,111780.0,111680.0,0.17908309]
[1760130855245,0.54029797,111750.0,111680.0,0.17908309]
[1760130855501,0.09144,111740.0,111700.0,0.0002]
[1760130856008,0.63172,111780.0,111700.0,0.0002]
[1760130856009,0.64029796,111760.0,111700.0,0.0002]
[1760130856235,2.661074,111720.0,111600.0,0.28559954]
[1760130856436,0.09999999,111690.0,111620.0,0.24008667]
[1760130856651,0.63173797,111690.0,111620.0,0.24008667]
[1760130856860,0.33472,111680.0,111620.0,0.24008667]
[1760130857081,0.54029797,111640.0,111570.0,0.28559954]
[1760130857329,0.09144,111630.0,111550.0,0.00613769]
[1760130857570,0.54029797,111570.0,111480.0,0.25153111]
[1760130857810,0.54029797,111510.0,111420.0,0.00170191]
[1760130858038,0.09144,111500.0,111420.0,0.00050788]
[1760130858244,0.04751,111430.0,111260.0,0.07260759]
[1760130858453,0.40956,111420.0,111300.0,0.18867717]
[1760130858669,0.40956,111420.0,111250.0,0.71960719]
[1760130858670,0.09144,111410.0,111250.0,0.71960719]
[1760130858886,0.2864,111360.0,111150.0,0.03682639]
[1760130859136,0.09999999,111320.0,111150.0,0.50145818]
[1760130859351,0.09381,111330.0,111110.0,7.89318987]
[1760130859569,0.10681,111170.0,111080.0,0.76000252]
[1760130859782,0.10681,111150.0,111070.0,8e-05]
[1760130860007,0.10681,111150.0,111100.0,0.54029797]
[1760130860208,0.88405,111140.0,111040.0,0.00770319]
[1760130860422,0.50372,111130.0,111090.0,0.18003177]
[1760130860659,0.09381,111120.0,111020.0,0.07160759]
[1760130860866,0.50372,111130.0,111120.0,0.1799856]
[1760130861087,0.09381,111130.0,111090.0,0.00900171]
[1760130861299,0.50412,111170.0,111070.0,0.00900333]
[1760130861522,0.50412,111170.0,111110.0,0.18000113]
[1760130861743,0.50412,111170.0,111120.0,0.1888716]
[1760130861961,1e-08,111180.0,111170.0,0.17990465]
[1760130862177,0.10542687,111200.0,111190.0,0.07366677]
[1760130862397,0.07160759,111180.0,111170.0,0.18889988]
[1760130862605,1e-08,111230.0,111220.0,0.17982377]
[1760130863065,1e-08,111230.0,111150.0,0.004577]
[1760130863310,0.07160759,111210.0,111060.0,0.18008283]
[1760130863513,0.07160759,111210.0,111080.0,0.00900252]
[1760130863732,0.24253759,111210.0,111070.0,0.02098966]
[1760130863952,0.24303528,111210.0,111000.0,0.0055]
[1760130864166,0.24303528,111210.0,110960.0,0.04411791]
[1760130864408,0.16591528,111210.0,111120.0,0.00899928]
[1760130864626,0.00457743,111200.0,111120.0,0.2699541]
[1760130864842,0.00457743,111200.0,111190.0,0.17956093]
[1760130865059,0.07210528,111210.0,111200.0,0.17985611]
[1760130865319,0.07210528,111210.0,111180.0,0.12849765]
[1760130865517,0.05109365,111130.0,111040.0,0.75]
[1760130865741,0.00541561,111130.0,111120.0,0.46791074]
[1760130865975,0.00834183,111200.0,111070.0,0.30406894]
[1760130866178,0.09999999,111190.0,111090.0,0.1523689]
[1760130866415,0.19380999,111190.0,111090.0,0.1094569]
[1760130866633,0.09381,111190.0,111100.0,0.17850639]
[1760130866864,0.09381,111180.0,110970.0,0.12928]
[1760130867129,0.09999999,111090.0,110960.0,0.28792514]
[1760130867371,0.14132,111080.0,110990.0,0.28792514]
[1760130867578,0.27387986,111070.0,110990.0,0.21227976]
[1760130867796,0.09999999,111040.0,110930.0,0.08694641]
[1760130868014,0.50346458,111020.0,110930.0,0.0436949]
[1760130868230,0.50346458,110990.0,110900.0,0.22294677]
[1760130868449,0.09785,110980.0,110930.0,2.6e-07]
[1760130868667,0.17349103,110990.0,110930.0,2.6e-07]
[1760130868882,0.07989467,111050.0,110930.0,2.6e-07]
[1760130868883,0.34,111040.0,110930.0,2.6e-07]
[1760130869099,0.07208181,110940.0,110870.0,0.02305797]
[1760130869313,0.00900819,111010.0,110880.0,0.09801]
[1760130869564,0.00900657,111030.0,110880.0,0.10702875]
[1760130869767,0.18011644,111040.0,110810.0,0.05822891]
[1760130869768,0.00901306,110950.0,110810.0,0.05822891]
[1760130870024,0.00901306,110950.0,110770.0,8e-05]
[1760130870025,0.10901549,110920.0,110770.0,8e-05]
[1760130870232,0.00902201,110840.0,110770.0,8e-05]
[1760130870479,0.34,110850.0,110770.0,8e-05]
[1760130870716,0.18057146,110760.0,110720.0,0.01552031]
[1760130871003,0.34,110730.0,110620.0,8e-05]
[1760130871224,0.00834183,110710.0,110610.0,0.00904077]
[1760130871468,0.02718966,110750.0,110640.0,0.04587359]
[1760130871698,0.02718966,110750.0,110520.0,0.75]
[1760130871699,0.18076699,110640.0,110530.0,0.04558493]
[1760130871922,0.12959999,110700.0,110540.0,0.04544154]
[1760130872131,0.12959999,110700.0,110410.0,0.21595731]
[1760130872132,5.05,110610.0,110410.0,0.21595731]
[1760130872383,5.05,110410.0,110280.0,0.001]
[1760130872583,0.09999999,110380.0,110300.0,0.0062065]
[1760130872807,0.09999999,110340.0,110210.0,0.001]
[1760130873034,0.02881686,110270.0,110140.0,0.09782323]
[1760130873252,0.013716,110190.0,110090.0,0.09545525]
[1760130873475,0.03584,110220.0,110180.0,0.4]
[1760130873962,0.03584,110220.0,110110.0,0.00368843]
[1760130873963,4.879104,110210.0,110110.0,0.00368843]
[1760130874185,0.00013475,110220.0,110150.0,0.00901552]
[1760130874418,0.3,110270.0,110130.0,0.00501921]
[1760130874609,0.0273169,110310.0,110160.0,0.18148983]
[1760130874856,0.05594,110300.0,110130.0,0.00050691]
[1760130875076,0.03953,110150.0,110050.0,0.00465216]
[1760130875283,4.918634,110200.0,110040.0,0.04589842]
[1760130875517,4.918634,110200.0,110000.0,4.48187909]
[1760130875518,4.918634,110130.0,110000.0,3.53201585]
[1760130875720,0.03918,110140.0,110000.0,3.44143595]
[1760130875958,0.02499999,110220.0,110060.0,0.13633424]
[1760130876171,0.32881686,110270.0,110120.0,0.25502176]
[1760130876414,0.3165755,110310.0,110210.0,0.04615]
[1760130876415,0.3,110290.0,110210.0,0.04615]
[1760130876617,0.3236853,110400.0,110120.0,0.15523232]
[1760130876870,0.3236853,110400.0,110380.0,0.18119224]
[1760130877095,0.02731388,110390.0,110160.0,6e-05]
[1760130877346,0.13004,110510.0,110380.0,0.18119224]
[1760130877557,0.13004,110510.0,110370.0,0.00906043]
[1760130877756,0.13004,110510.0,110350.0,0.00906207]
[1760130877757,4.918634,110470.0,110350.0,0.00906207]
[1760130877974,4.918634,110500.0,110200.0,0.14592686]
[1760130878259,4.50283861,110460.0,110440.0,0.18108374]
[1760130878487,0.3,110560.0,110510.0,0.00904895]
[1760130878737,0.04843,110630.0,110510.0,0.00904895]
[1760130878738,0.3,110580.0,110530.0,0.60578267]
[1760130878978,0.31430475,110610.0,110520.0,0.415795]
[1760130878979,0.28591154,110610.0,110520.0,0.415795]
[1760130879235,0.00073032,110640.0,110580.0,0.415795]
[1760130879448,0.28930476,110730.0,110680.0,0.415795]
[1760130879679,0.28930476,110730.0,110710.0,0.415795]
[1760130879680,0.28980016,110730.0,110710.0,0.415795]
[1760130879879,0.05970274,110760.0,110750.0,0.1805869]
[1760130880097,0.001,110840.0,110820.0,0.18046287]
[1760130880317,0.002,110840.0,110830.0,0.31620812]
[1760130880557,0.002,110840.0,110830.0,0.18045655]
[1760130880761,0.01804893,110960.0,110930.0,0.18929003]
[1760130880970,8e-05,110920.0,110910.0,0.18032639]
[1760130881207,8e-05,110920.0,110850.0,0.00902119]
[1760130881208,0.001,110860.0,110830.0,0.00902282]
[1760130881409,0.001,110870.0,110860.0,0.1894281]
[1760130881621,0.001,110870.0,110800.0,0.00902527]
[1760130881858,0.01592,110920.0,110780.0,0.0090269]
[1760130881859,8e-05,110920.0,110780.0,0.0090269]
[1760130882058,0.00099958,110820.0,110650.0,0.0090375]
[1760130882278,0.00099958,110800.0,110730.0,0.09801]
[1760130882542,8e-05,110920.0,110810.0,4.502839]
[1760130882744,0.09793,110920.0,110800.0,0.00769576]
[1760130882970,0.09793,110920.0,110780.0,0.00769576]
[1760130883218,0.09793,110920.0,110730.0,0.18964172]
[1760130883423,0.64,110880.0,110720.0,0.017428]
[1760130883646,5.39,110860.0,110710.0,0.28930476]
[1760130883865,5.05,110800.0,110680.0,0.00769576]
[1760130884091,0.06000832,110710.0,110620.0,8e-05]
[1760130884311,0.06000832,110710.0,110550.0,0.28930476]
[1760130884312,0.3,110650.0,110550.0,0.28930476]
[1760130884570,0.00903668,110660.0,110470.0,8e-05]
[1760130884571,0.3,110590.0,110470.0,8e-05]
[1760130884838,0.01730423,110690.0,110620.0,0.28930476]
[1760130885050,0.35580421,110930.0,110730.0,0.18965003]
[1760130885279,0.04038744,110910.0,110760.0,0.00902853]
[1760130885519,0.0015,111060.0,110770.0,0.00902771]
[1760130885734,0.29494785,118030.0,111450.0,0.02232641]
[1760130885735,0.001,111460.0,111450.0,0.02232641]
[1760130885953,0.04843,111640.0,111360.0,0.10741755]
[1760130885954,0.001,111370.0,111360.0,0.10741755]
[1760130886200,0.001,111450.0,111370.0,0.17951819]
[1760130886409,0.001,111450.0,111280.0,0.188697]
[1760130886410,0.01866599,111420.0,111280.0,0.188697]
[1760130886632,0.04843,111290.0,111240.0,0.00457743]
[1760130886872,0.04476811,111360.0,111220.0,0.09999999]
[1760130887077,0.04498684,111430.0,111270.0,4.5955]
[1760130887303,0.00049933,111360.0,111160.0,0.37991004]
[1760130887500,0.09785,111350.0,111220.0,4.5955]
[1760130887711,0.00049933,111360.0,111220.0,4.5955]
[1760130887919,0.65356922,111460.0,111200.0,0.10899279]
[1760130887920,0.14984729,111780.0,111770.0,0.17893889]
[1760130888133,0.001,111780.0,111770.0,0.70575905]
[1760130888349,0.01481439,112020.0,111970.0,0.17861927]
[1760130888565,0.00050364,111980.0,111970.0,0.21038423]
[1760130888774,0.01481439,112020.0,111970.0,0.21038423]
[1760130888775,0.44056275,112120.0,112110.0,0.17839621]
[1760130888984,0.39479701,112120.0,112110.0,5.6327538]
[1760130889194,0.0023,112280.0,112150.0,4.47418249]
[1760130889449,0.01471889,112220.0,112140.0,4.47418249]
[1760130889670,0.01471889,112220.0,112150.0,4.47418249]
[1760130889917,0.11980999,112210.0,112040.0,4.47328749]
[1760130890203,0.02007999,112080.0,111880.0,0.00893814]
[1760130890429,0.09481,112200.0,112090.0,4.46778197]
[1760130890430,0.10962286,112200.0,112090.0,4.46778197]
[1760130890637,0.64562377,112220.0,112160.0,0.17828625]
[1760130890857,0.64562377,112220.0,112210.0,4.57442656]
[1760130890858,0.00999006,112220.0,112210.0,4.57442656]
[1760130891079,0.1035072,112260.0,112240.0,0.17818959]
[1760130891299,0.0023,112280.0,112250.0,4.2150415]
[1760130891523,0.023215,112430.0,112250.0,4.2150415]
[1760130891524,0.04421114,112550.0,112290.0,0.00890551]
[1760130891746,0.053403,112450.0,112270.0,4.21282305]
[1760130891964,0.07116171,112340.0,112290.0,4.07732379]
[1760130892179,0.07116171,112380.0,112270.0,3.98708494]
[1760130892618,0.00890075,112350.0,112240.0,0.0170659]
[1760130892839,0.07116171,112400.0,112280.0,3.99487697]
[1760130893062,0.0713133,112350.0,112280.0,4.16241065]
[1760130893302,0.0713133,112350.0,112240.0,0.02674055]